fUST/lending_fUST_20240116
["ID","MTS","AMOUNT","RATE_DAILY","PERIOD"]
[311775914,1705385445459,-2219.05,0.00026604,2]
[311775916,1705385445468,-1284.72,0.00026604,2]
[311775918,1705385445477,-500.0,0.00026604,2]
[311775920,1705385445486,-735.03,0.00026604,2]
[311775922,1705385445496,-534.12,0.00026604,2]
[311775925,1705385445505,-500.0,0.00026606,2]
[311775927,1705385445514,-500.0,0.00026657,2]
[311775929,1705385445523,-500.0,0.00026657,2]
[311775931,1705385445532,-500.0,0.00026657,2]
[311775933,1705385445541,-500.0,0.00026657,2]
[311775935,1705385445551,-746.13,0.00026657,2]
[311775937,1705385445559,-529.74,0.00026878,2]
[311775939,1705385445569,-2219.05,0.00026878,2]
[311775941,1705385445578,-1284.72,0.00026878,2]
[311775942,1705385445588,-500.0,0.00026878,2]
[311775944,1705385445598,-735.03,0.00026878,2]
[311775946,1705385445606,-534.12,0.00026878,2]
[311775948,1705385445616,-155.69990714,0.0002688,2]
[311775950,1705385445625,-155.45385163,0.0002688,2]
[311775952,1705385445634,-155.1955236,0.0002688,2]
[311775954,1705385445643,-753.57612089,0.0002688,2]
[311775956,1705385445653,-500.0,0.0002688,2]
[311775958,1705385445662,-200.18301845,0.00026881,2]
[311775959,1705385445671,-266.94660645,0.00026881,2]
[311775961,1705385445680,-223.408,0.0002691,2]
[311775963,1705385445689,-500.0,0.00026931,2]
[311775965,1705385445698,-500.0,0.00026931,2]
[311775967,1705385445709,-500.0,0.00026931,2]
[311775969,1705385445718,-500.0,0.00026931,2]
[311775971,1705385445727,-746.13,0.00026931,2]
[311775973,1705385445738,-274.42712104,0.00027,2]
[311775975,1705385445747,-289.85545354,0.00027,2]
[311775977,1705385445756,-461.1686624,0.00027,2]
[311775979,1705385445766,-529.74,0.00027152,2]
[311775981,1705385445775,-2219.05,0.00027152,2]
[311775983,1705385445785,-1284.72,0.00027152,2]
[311775985,1705385445794,-500.0,0.00027152,2]
[311775987,1705385445803,-735.03,0.00027152,2]
[311775988,1705385445811,-534.12,0.00027152,2]
[311775990,1705385445821,-500.0,0.00027154,2]
[311775992,1705385445830,-500.0,0.00027205,2]
[311775994,1705385445839,-500.0,0.00027205,2]
[311775996,1705385445849,-351.97681267,0.00027205,2]
[311775998,1705385445858,-500.0,0.00027205,2]
[311776000,1705385445867,-746.13,0.00027205,2]
[311776002,1705385445876,-500.0,0.00027397,2]
[311776004,1705385445885,-500.0,0.00027397,2]
[311776006,1705385445894,-500.0,0.00027397,2]
[311776008,1705385445903,-500.0,0.00027397,2]
[311776010,1705385445911,-500.0,0.00027397,2]
[311776012,1705385445921,-500.0,0.00027397,2]
[311776013,1705385445930,-500.0,0.00027397,2]
[311776015,1705385445939,-257.40868539,0.00027397,2]
[311776017,1705385445948,-155.0,0.00027397,2]
[311776019,1705385445956,-564.86929557,0.00027397,2]
[311776021,1705385445965,-1000.0,0.00027397,2]
[311776023,1705385445974,-508.84364102,0.00027397,2]
[311776025,1705385445984,-10026.40145597,0.00027397,10]
[311776027,1705385445992,-529.74,0.00027426,2]
[311776029,1705385446001,-2219.05,0.00027426,2]
[311776031,1705385446011,-1284.72,0.00027426,2]
[311776033,1705385446021,-500.0,0.00027426,2]
[311776035,1705385446029,-735.03,0.00027426,2]
[311776037,1705385446038,-534.12,0.00027426,2]
[311776039,1705385446048,-500.0,0.00027428,2]
[311776040,1705385446058,-500.0,0.00027479,2]
[311776042,1705385446067,-500.0,0.00027479,2]
[311776044,1705385446076,-500.0,0.00027479,2]
[311776046,1705385446085,-746.13,0.00027479,2]
[311776048,1705385446096,-620.61880074,0.00027651,2]
[311776050,1705385446105,-529.74,0.000277,2]
[311776052,1705385446114,-2219.05,0.000277,2]
[311776054,1705385446123,-1284.72,0.000277,2]
[311776056,1705385446132,-500.0,0.000277,2]
[311776057,1705385446141,-735.03,0.000277,2]
[311776059,1705385446151,-534.12,0.000277,2]
[311776061,1705385446160,-500.0,0.00027702,2]
[311776063,1705385446169,-500.0,0.00027753,2]
[311776065,1705385446178,-183.96206332,0.00027753,2]
[311776067,1705385446188,-500.0,0.00027753,2]
[311776069,1705385446197,-746.13,0.00027753,2]
[311776071,1705385446206,-554.84040286,0.00027866,2]
[311776073,1705385446215,-500.0,0.00027866,2]
[311776075,1705385446224,-500.0,0.00027866,2]
[311776077,1705385446233,-500.0,0.00027866,2]
[311776079,1705385446242,-500.0,0.00027866,2]
[311776081,1705385446251,-496.48110583,0.00027866,2]
[311776083,1705385446260,-500.0,0.00027866,2]
[311776085,1705385446270,-500.0,0.00027866,2]
[311776086,1705385446279,-554.84040286,0.00027866,2]
[311776088,1705385446287,-500.0,0.00027866,2]
[311776090,1705385446297,-500.0,0.00027866,2]
[311776092,1705385446306,-554.84040286,0.00027866,2]
[311776094,1705385446315,-500.0,0.00027866,2]
[311776096,1705385446324,-500.0,0.00027866,2]
[311776098,1705385446333,-554.84040286,0.00027866,2]
[311776100,1705385446343,-500.0,0.00027866,2]
[311776102,1705385446352,-500.0,0.00027866,2]
[311776104,1705385446361,-222.08050944,0.00027866,2]
[311776106,1705385446370,-500.0,0.00027866,2]
[311776108,1705385446379,-554.84040286,0.00027866,2]
[311776110,1705385446388,-500.0,0.00027866,2]
[311776111,1705385446397,-554.84040286,0.00027866,2]
[311776113,1705385446407,-500.0,0.00027866,2]
[311776115,1705385446416,-644.18221785,0.00027866,2]
[311776117,1705385446425,-554.84040286,0.00027866,2]
[311776119,1705385446435,-500.0,0.00027866,2]
[311776121,1705385446445,-500.0,0.00027866,2]
[311776123,1705385446454,-554.84040286,0.00027866,2]
[311776125,1705385446463,-500.0,0.00027866,2]
[311776127,1705385446472,-181.6642501,0.00027866,2]
[311776129,1705385446481,-500.0,0.00027866,2]
[311776131,1705385446489,-631.87569629,0.00027866,2]
[311776133,1705385446499,-554.84040286,0.00027866,2]
[311776134,1705385446507,-500.0,0.00027866,2]
[311776136,1705385446518,-259.1328485,0.00027866,2]
[311776138,1705385446526,-225.58896868,0.00027868,4]
[311776140,1705385446535,-500.0,0.00027868,4]
[311776142,1705385446545,-252.72563022,0.00027868,4]
[311776144,1705385446554,-500.0,0.00027868,4]
[311776146,1705385446564,-500.0,0.00027868,4]
[311776148,1705385446573,-500.0,0.00027868,4]
[311776150,1705385446581,-312.37101608,0.00027868,4]
[311776152,1705385446591,-500.0,0.00027868,4]
[311776154,1705385446600,-500.0,0.00027868,4]
[311776156,1705385446608,-500.0,0.00027868,4]
[311776158,1705385446617,-500.0,0.00027868,4]
[311776160,1705385446626,-500.0,0.00027868,4]
[311776161,1705385446636,-500.0,0.00027868,4]
[311776163,1705385446645,-500.0,0.00027868,4]
[311776165,1705385446654,-500.0,0.00027868,4]
[311776167,1705385446663,-500.0,0.00027868,4]
[311776169,1705385446673,-371.88301553,0.00027868,4]
[311776171,1705385446682,-500.0,0.00027868,4]
[311776173,1705385446691,-500.0,0.00027868,4]
[311776175,1705385446700,-500.0,0.00027868,4]
[311776177,1705385446709,-500.0,0.00027868,4]
[311776179,1705385446718,-500.0,0.00027868,4]
[311776181,1705385446727,-500.0,0.00027868,4]
[311776183,1705385446736,-50000.0,0.00027869,3]
[311776185,1705385446745,-58164.18258358,0.00027869,3]
[311776187,1705385446754,-5000.0,0.00027869,5]
[311776189,1705385446763,-30814.58206828,0.00027869,4]
[311776191,1705385446772,-5000.0,0.00027869,5]
[311776193,1705385446781,-50000.0,0.00027869,4]
[311776194,1705385446790,-50000.0,0.00027869,4]
[311776196,1705385446798,-58632.13364252,0.00027869,4]
[311776255,1705385447490,-554.84040286,0.00027866,2]
[311776257,1705385447499,-500.0,0.00027866,2]
[311776259,1705385447508,-500.0,0.00027866,2]
[311776261,1705385447518,-554.84040286,0.00027866,2]
[311776263,1705385447527,-544.68319555,0.00027866,2]
[311776266,1705385447538,-10.15720731,0.00027866,2]
[311776268,1705385447548,-500.0,0.00027866,2]
[311776270,1705385447556,-554.84040286,0.00027866,2]
[311776272,1705385447566,-554.84040286,0.00027866,2]
[311776274,1705385447574,-554.84040286,0.00027866,2]
[311776275,1705385447583,-500.0,0.00027866,2]
[311776277,1705385447593,-500.0,0.00027866,2]
[311776279,1705385447602,-500.0,0.00027866,2]
[311776281,1705385447611,-500.0,0.00027866,2]
[311776283,1705385447621,-554.84040286,0.00027866,2]
[311776285,1705385447630,-500.0,0.00027866,2]
[311776287,1705385447639,-500.0,0.00027866,2]
[311776289,1705385447648,-554.84040286,0.00027866,2]
[311776291,1705385447657,-500.0,0.00027866,2]
[311776293,1705385447666,-554.84040286,0.00027866,2]
[311776295,1705385447675,-500.0,0.00027866,2]
[311776297,1705385447684,-500.0,0.00027866,2]
[311776299,1705385447693,-554.84040286,0.00027866,2]
[311776301,1705385447703,-500.0,0.00027866,2]
[311776303,1705385447712,-500.0,0.00027866,2]
[311776305,1705385447722,-554.84040286,0.00027866,2]
[311776308,1705385447732,-500.0,0.00027866,2]
[311776310,1705385447742,-500.0,0.00027866,2]
[311776311,1705385447751,-500.0,0.00027866,2]
[311776313,1705385447760,-554.84040286,0.00027866,2]
[311776315,1705385447769,-500.0,0.00027866,2]
[311776317,1705385447778,-554.84040286,0.00027866,2]
[311776319,1705385447788,-554.84040286,0.00027866,2]
[311776321,1705385447797,-554.84040286,0.00027866,2]
[311776323,1705385447806,-554.84040286,0.00027866,2]
[311776325,1705385447815,-554.84040286,0.00027866,2]
[311776327,1705385447824,-33226.38932872,0.00027869,4]
[311776329,1705385447833,-3248.23595288,0.00027869,5]
[311776332,1705385447844,-529.74,0.00027973,2]
[311776334,1705385447853,-2219.05,0.00027973,2]
[311776336,1705385447863,-500.0,0.00027973,2]
[311776338,1705385447872,-1284.72,0.00027974,2]
[311776340,1705385447881,-735.03,0.00027974,2]
[311776342,1705385447890,-534.12,0.00027974,2]
[311776343,1705385447899,-590.98552948,0.00027976,2]
[311776345,1705385447908,-4115.22953383,0.00028,2]
[311776347,1705385447918,-500.0,0.00028027,2]
[311776349,1705385447927,-500.0,0.00028027,2]
[311776351,1705385447936,-746.13,0.00028027,2]
[311776353,1705385447945,-198.9082381,0.00028164,2]
[311776356,1705385447955,-529.74,0.00028247,2]
[311776358,1705385447964,-2219.05,0.00028247,2]
[311776360,1705385447973,-500.0,0.00028247,2]
[311776361,1705385447982,-1284.72,0.00028248,2]
[311776364,1705385447993,-735.03,0.00028248,2]
[311776365,1705385448004,-534.12,0.00028248,2]
[311776368,1705385448014,-500.0,0.00028301,2]
[311776370,1705385448024,-500.0,0.00028301,2]
[311776371,1705385448033,-746.13,0.00028301,2]
[311776373,1705385448043,-207.6225,0.00028424,2]
[311776375,1705385448052,-179.452453,0.00028424,2]
[311776377,1705385448061,-190.451573,0.00028424,2]
[311776379,1705385448070,-223.564661,0.00028424,2]
[311776381,1705385448079,-154.7203108,0.00028493,2]
[311776383,1705385448090,-153.2565765,0.00028493,2]
[311776385,1705385448100,-198.9082381,0.00028493,2]
[311776387,1705385448109,-153.2749664,0.00028493,2]
[311776390,1705385448119,-198.9082381,0.00028493,2]
[311776391,1705385448128,-529.74,0.00028521,2]
[311776393,1705385448138,-2219.05,0.00028521,2]
[311776395,1705385448147,-500.0,0.00028521,2]
[311776397,1705385448158,-1284.72,0.00028522,2]
[311776399,1705385448167,-735.03,0.00028522,2]
[311776401,1705385448176,-534.12,0.00028522,2]
[311776403,1705385448186,-500.0,0.00028575,2]
[311776406,1705385448196,-500.0,0.00028575,2]
[311776407,1705385448206,-746.13,0.00028575,2]
[311776410,1705385448216,-151.0,0.00028712,2]
[311776411,1705385448225,-3882.37933715,0.00028749,2]
[311776413,1705385448234,-155.0,0.00028767,2]
[311776415,1705385448243,-207.6225,0.00028779,2]
[311776417,1705385448253,-190.451573,0.00028779,2]
[311776420,1705385448262,-529.74,0.00028795,2]
[311776421,1705385448271,-2219.05,0.00028795,2]
[311776423,1705385448280,-500.0,0.00028795,2]
[311776425,1705385448290,-1284.72,0.00028796,2]
[311776428,1705385448299,-735.03,0.00028796,2]
[311776429,1705385448309,-534.12,0.00028796,2]
[311776432,1705385448320,-500.0,0.00028849,2]
[311776433,1705385448328,-500.0,0.00028849,2]
[311776435,1705385448337,-746.13,0.00028849,2]
[311776437,1705385448346,-179.452453,0.00028898,2]
[311776439,1705385448356,-361.96337349,0.00028903,2]
[311776441,1705385448365,-198.9082381,0.00028986,2]
[311776443,1705385448374,-198.9082381,0.00028986,2]
[311776445,1705385448383,-198.9082381,0.00028986,2]
[311776447,1705385448392,-198.9082381,0.00028986,2]
[311776449,1705385448401,-198.9082381,0.00028986,2]
[311776451,1705385448410,-198.9082381,0.00028986,2]
[311776453,1705385448420,-198.9082381,0.00028986,2]
[311776455,1705385448430,-2454.74382412,0.00029,2]
[311776457,1705385448439,-276.97569382,0.00029,2]
[311776460,1705385448449,-620.03094004,0.00029033,2]
[311776461,1705385448458,-529.74,0.00029069,2]
[311776463,1705385448467,-2219.05,0.00029069,2]
[311776465,1705385448476,-562.90109932,0.00029069,2]
[311776467,1705385448485,-1284.72,0.0002907,2]
[311776470,1705385448494,-735.03,0.0002907,2]
[311776471,1705385448503,-534.12,0.0002907,2]
[311776474,1705385448512,-500.0,0.00029123,2]
[311776476,1705385448522,-500.0,0.00029123,2]
[311776477,1705385448531,-746.13,0.00029123,2]
[311776479,1705385448540,-207.6225,0.00029134,2]
[311776481,1705385448549,-190.451573,0.00029134,2]
[311776484,1705385448559,-198.9082381,0.00029315,2]
[311776486,1705385448568,-198.9082381,0.00029315,2]
[311776487,1705385448577,-271.4985133,0.00029315,2]
[311776489,1705385448586,-198.9082381,0.00029315,2]
[311776491,1705385448596,-198.9082381,0.00029315,2]
[311776493,1705385448607,-198.8089634,0.00029315,2]
[311776495,1705385448616,-154.5828424,0.00029315,2]
[311776497,1705385448624,-154.5843037,0.00029315,2]
[311776499,1705385448633,-153.0,0.00029315,2]
[311776501,1705385448642,-153.0,0.00029315,2]
[311776503,1705385448650,-198.8089634,0.00029315,2]
[311776505,1705385448659,-153.0,0.00029315,2]
[311776507,1705385448668,-153.0,0.00029315,2]
[311776509,1705385448677,-153.0,0.00029315,2]
[311776511,1705385448686,-153.0,0.00029315,2]
[311776513,1705385448694,-153.0,0.00029315,2]
[311776515,1705385448703,-153.2911349,0.00029315,2]
[311776525,1705385448784,-529.74,0.00029343,2]
[311776527,1705385448793,-2219.05,0.00029343,2]
[311776529,1705385448803,-1284.72,0.00029344,2]
[311776531,1705385448812,-735.03,0.00029344,2]
[311776533,1705385448822,-534.12,0.00029344,2]
[311776535,1705385448831,-179.452453,0.00029371,2]
[311776538,1705385448840,-500.0,0.00029396,2]
[311776540,1705385448850,-572.95556617,0.00029396,2]
[311776542,1705385448859,-746.13,0.00029396,2]
[311776544,1705385448868,-154.0128522,0.00029404,2]
[311776545,1705385448877,-207.6225,0.0002949,2]
[311776547,1705385448886,-190.451573,0.0002949,2]
[311776549,1705385448895,-161.7286158,0.00029491,2]
[311776551,1705385448905,-151.0,0.00029555,2]
[311776553,1705385448914,-529.74,0.00029617,2]
[311776556,1705385448923,-2219.05,0.00029617,2]
[311776558,1705385448932,-1284.72,0.00029618,2]
[311776560,1705385448942,-735.03,0.00029618,2]
[311776562,1705385448951,-534.12,0.00029618,2]
[311776564,1705385448961,-154.0128522,0.00029622,2]
[311776565,1705385448973,-500.0,0.0002967,2]
[311776568,1705385448983,-746.13,0.0002967,2]
[311776570,1705385448992,-254.82398589,0.00029701,3]
[311776571,1705385449001,-161.7286158,0.00029749,2]
[311776574,1705385449012,-28503.02981142,0.0002979,7]
[311776576,1705385449022,-179.452453,0.00029845,2]
[311776577,1705385449031,-223.564661,0.00029845,2]
[311776579,1705385449041,-207.6225,0.00029845,2]
[311776581,1705385449051,-190.451573,0.00029845,2]
[311776583,1705385449061,-5000.0,0.00029863,2]
[311776586,1705385449070,-5000.0,0.00029863,2]
[311776587,1705385449079,-5000.0,0.00029863,2]
[311776589,1705385449088,-5000.0,0.00029863,2]
[311776591,1705385449098,-136046.09107439,0.0002988,2]
[311776594,1705385449111,-729.81146932,0.0002988,2]
[311779236,1705386633148,-425.4475257,0.00022926,2]
[311779238,1705386633158,-176.142699,0.00022927,2]
[311779240,1705386633167,-2066.591074,0.00022936,2]
[311779242,1705386633177,-419.35615928,0.00023316,2]
[311779244,1705386633186,-213.507193,0.00023409,2]
[311779246,1705386633195,-500.0,0.00023591,2]
[311779248,1705386633205,-500.0,0.00023591,2]
[311779250,1705386633214,-500.0,0.00023591,2]
[311779252,1705386633223,-500.0,0.00023591,2]
[311779254,1705386633233,-500.0,0.00023591,2]
[311779255,1705386633242,-500.0,0.00023591,2]
[311779257,1705386633251,-500.0,0.00023591,2]
[311779258,1705386633260,-500.0,0.00023865,2]
[311779259,1705386633270,-500.0,0.00023865,2]
[311779260,1705386633279,-500.0,0.00023865,2]
[311779262,1705386633288,-500.0,0.00023865,2]
[311779264,1705386633297,-500.0,0.00023865,2]
[311779266,1705386633307,-500.0,0.00024138,2]
[311779267,1705386633317,-500.0,0.00024138,2]
[311779268,1705386633326,-500.0,0.00024138,2]
[311779270,1705386633335,-399.78992172,0.00024138,2]
[311779271,1705386633345,-500.0,0.00024139,2]
[311779273,1705386633355,-500.0,0.00024139,2]
[311779275,1705386633365,-500.0,0.00024139,2]
[311779276,1705386633374,-500.0,0.00024139,2]
[311779277,1705386633384,-177.43887753,0.00024313,2]
[311779278,1705386633394,-500.0,0.00024412,2]
[311779279,1705386633403,-500.0,0.00024413,2]
[311779280,1705386633413,-500.0,0.00024413,2]
[311779281,1705386633422,-500.0,0.00024413,2]
[311779282,1705386633432,-500.0,0.00024413,2]
[311779283,1705386633442,-500.0,0.00024686,2]
[311779284,1705386633452,-500.0,0.00024687,2]
[311779285,1705386633462,-500.0,0.00024687,2]
[311779286,1705386633472,-500.0,0.00024687,2]
[311779287,1705386633482,-500.0,0.00024687,2]
[311779288,1705386633491,-497.68470195,0.0002495,5]
[311779289,1705386633502,-500.0,0.0002496,2]
[311779290,1705386633511,-500.0,0.00024961,2]
[311779291,1705386633521,-500.0,0.00024961,2]
[311779292,1705386633534,-500.0,0.00024961,2]
[311779293,1705386633549,-1045.05948708,0.00025,2]
[311779294,1705386633562,-4716.82638211,0.00025232,2]
[311779295,1705386633575,-500.0,0.00025234,2]
[311779296,1705386633588,-384.25,0.00025235,2]
[311779297,1705386633602,-500.0,0.00025235,2]
[311779298,1705386633614,-500.0,0.00025508,2]
[311779299,1705386633625,-500.0,0.00025509,2]
[311779300,1705386633635,-500.0,0.00025782,2]
[311779301,1705386633646,-500.0,0.00025783,2]
[311779302,1705386633658,-200.0,0.00025949,7]
[311779303,1705386633670,-557.92,0.00026056,2]
[311779304,1705386633682,-500.0,0.00026057,2]
[311779305,1705386633693,-155.45748656,0.0002609,2]
[311779306,1705386633705,-1592.93,0.0002611,3]
[311779307,1705386633717,-3037.6,0.0002611,3]
[311779308,1705386633729,-2531.34,0.0002611,3]
[311779309,1705386633740,-200.29041192,0.00026117,2]
[311779310,1705386633751,-329.183235,0.00026118,2]
[311779311,1705386633764,-18060.60959302,0.00026118,2]
[311779312,1705386633774,-1031.29658725,0.00026119,2]
[311779313,1705386633785,-273.18721547,0.00026119,2]
[311779314,1705386633795,-266.94660645,0.00026119,2]
[311779315,1705386633805,-687.93916872,0.00026119,2]
[311779316,1705386633817,-298.26083422,0.00026119,2]
[311779317,1705386633828,-1076.95,0.00026119,2]
[311779318,1705386633839,-615.97967559,0.0002612,2]
[311779319,1705386633850,-13700.42570199,0.0002612,2]
[311779320,1705386633860,-500.0,0.0002612,2]
[311779321,1705386633872,-500.0,0.0002612,2]
[311779322,1705386633883,-500.0,0.0002612,2]
[311779323,1705386633893,-500.0,0.0002612,2]
[311779324,1705386633904,-500.0,0.0002612,2]
[311779325,1705386633915,-500.0,0.0002612,2]
[311779326,1705386633926,-500.0,0.0002612,2]
[311779327,1705386633939,-500.0,0.0002612,2]
[311779328,1705386633950,-1677.0,0.0002612,2]
[311779329,1705386633961,-500.0,0.0002612,2]
[311779330,1705386633971,-500.0,0.0002612,2]
[311779331,1705386633980,-500.0,0.0002612,2]
[311779332,1705386633990,-500.0,0.0002612,2]
[311779333,1705386634000,-1899.09227544,0.00026121,2]
[311779353,1705386638163,-553.8722645,0.00026119,2]
[311779355,1705386638174,-48100.90772456,0.00026121,2]
[311779357,1705386638185,-500.0,0.00026331,2]
[311779360,1705386638197,-1076.95,0.00026393,2]
[311779362,1705386638209,-500.0,0.00026394,2]
[311779364,1705386638220,-500.0,0.00026394,2]
[311779366,1705386638232,-500.0,0.00026394,2]
[311779367,1705386638244,-1677.0,0.00026394,2]
[311779369,1705386638255,-500.0,0.00026394,2]
[311779372,1705386638267,-384.51514988,0.00026394,2]
[311779374,1705386638278,-500.0,0.00026394,2]
[311779375,1705386638288,-282.12940785,0.00026504,2]
[311779376,1705386638299,-500.0,0.00026605,2]
[311779377,1705386638309,-1076.95,0.00026667,2]
[311779378,1705386638319,-500.0,0.00026668,2]
[311779379,1705386638329,-501.08,0.00026668,2]
[311779380,1705386638340,-500.0,0.00026668,2]
[311779381,1705386638351,-1677.0,0.00026668,2]
[311779382,1705386638361,-500.0,0.00026668,2]
[311779383,1705386638372,-500.0,0.00026668,2]
[311779384,1705386638382,-500.0,0.00026879,2]
[311779385,1705386638393,-1076.95,0.00026941,2]
[311779386,1705386638404,-500.0,0.00026942,2]
[311779388,1705386638415,-500.0,0.00026942,2]
[311779391,1705386638426,-1677.0,0.00026942,2]
[311779393,1705386638436,-500.0,0.00026942,2]
[311779395,1705386638446,-500.0,0.00026942,2]
[311779397,1705386638456,-289.85545354,0.00027,2]
[311779399,1705386638466,-274.42712104,0.00027,2]
[311779401,1705386638475,-461.1686624,0.00027,2]
[311779403,1705386638485,-500.0,0.00027153,2]
[311779405,1705386638495,-1076.95,0.00027215,2]
[311779407,1705386638506,-500.0,0.00027216,2]
[311779409,1705386638517,-500.0,0.00027216,2]
[311779411,1705386638527,-1677.0,0.00027216,2]
[311779413,1705386638540,-500.0,0.00027216,2]
[311779416,1705386638551,-500.0,0.00027216,2]
[311779418,1705386638560,-282.12940782,0.00027353,2]
[311779420,1705386638571,-500.0,0.00027397,2]
[311779422,1705386638582,-500.0,0.00027397,2]
[311779424,1705386638594,-500.0,0.00027397,2]
[311779426,1705386638604,-500.0,0.00027397,2]
[311779428,1705386638617,-500.0,0.00027397,2]
[311779431,1705386638627,-500.0,0.00027397,2]
[311779433,1705386638637,-500.0,0.00027397,2]
[311779435,1705386638648,-500.0,0.00027397,2]
[311779437,1705386638658,-500.0,0.00027397,2]
[311779439,1705386638668,-500.0,0.00027397,2]
[311779441,1705386638678,-500.0,0.00027397,2]
[311779443,1705386638688,-500.0,0.00027397,2]
[311779445,1705386638698,-500.0,0.00027397,2]
[311779447,1705386638708,-500.0,0.00027426,2]
[311779449,1705386638719,-200.26191874,0.00027427,2]
[311779451,1705386638730,-1076.95,0.00027489,2]
[311779454,1705386638740,-500.0,0.0002749,2]
[311779468,1705386638862,-249.13022421,0.0002749,2]
[311779469,1705386638876,-1677.0,0.0002749,2]
[311779470,1705386638886,-500.0,0.0002749,2]
[311779472,1705386638895,-500.0,0.0002749,2]
[311779474,1705386638905,-500.0,0.00027534,2]
[311779476,1705386638914,-500.0,0.00027671,2]
[311779478,1705386638924,-500.0,0.000277,2]
[311779479,1705386638933,-1076.95,0.00027763,2]
[311779481,1705386638943,-500.0,0.00027764,2]
[311779483,1705386638951,-1677.0,0.00027764,2]
[311779484,1705386638960,-500.0,0.00027764,2]
[311779486,1705386638970,-500.0,0.00027764,2]
[311779487,1705386638979,-150.0,0.0002778,2]
[311779488,1705386638988,-500.0,0.00027808,2]
[311779489,1705386638997,-500.0,0.00027865,2]
[311779490,1705386639007,-665.9,0.00027865,2]
[311779491,1705386639018,-500.0,0.00027865,2]
[311779492,1705386639027,-500.0,0.00027865,2]
[311779493,1705386639036,-500.0,0.00027865,2]
[311779494,1705386639046,-500.0,0.00027865,2]
[311779495,1705386639055,-500.0,0.00027865,2]
[311779496,1705386639064,-500.0,0.00027865,2]
[311779497,1705386639074,-500.0,0.00027868,2]
[311779498,1705386639084,-506.47400644,0.00027868,2]
[311779499,1705386639094,-19707.94214276,0.00027869,5]
[311779500,1705386639103,-5000.0,0.00027869,5]
[311779501,1705386639114,-5616.76351068,0.00027891,5]
[311779502,1705386639123,-5000.0,0.00027891,5]
[311779503,1705386639133,-2138.95283934,0.00027891,5]
[311779504,1705386639142,-5000.0,0.00027891,5]
[311779505,1705386639151,-500.0,0.00027945,2]
[311779506,1705386639160,-500.0,0.00027974,2]
[311779507,1705386639169,-1076.95,0.00028037,2]
[311779508,1705386639179,-500.0,0.00028038,2]
[311779509,1705386639189,-1677.0,0.00028038,2]
[311779510,1705386639198,-500.0,0.00028038,2]
[311779511,1705386639208,-500.0,0.00028038,2]
[311779512,1705386639217,-155.0,0.0002805,2]
[311779513,1705386639226,-500.0,0.00028082,2]
[311779514,1705386639236,-500.0,0.00028139,2]
[311779515,1705386639245,-665.9,0.00028139,2]
[311779516,1705386639253,-500.0,0.00028139,2]
[311779517,1705386639263,-500.0,0.00028139,2]
[311779518,1705386639272,-500.0,0.00028139,2]
[311779519,1705386639282,-500.0,0.00028139,2]
[311779520,1705386639291,-500.0,0.00028139,2]
[311779521,1705386639301,-500.0,0.00028139,2]
[311779522,1705386639311,-500.0,0.00028142,2]
[311779523,1705386639321,-198.9082381,0.00028164,2]
[311779524,1705386639330,-282.12940782,0.00028202,2]